bitfinex-derivatives/quotes_SOLF0:USTF0_20250114
["timestamp","ask_amount","ask_price","bid_price","bid_amount"]
[1736842982552,7.95399886,186.33,186.28,1.622]
[1736842982756,7.95399886,186.31,186.28,1.622]
[1736842983261,7.95399886,186.31,186.29,2.685]
[1736842983461,10.63869886,186.33,186.29,2.685]
[1736842986771,10.63869886,186.33,186.3,2.685]
[1736842987073,182.873,186.44,186.31,7.95399886]
[1736842987273,7.95399886,186.37,186.33,2.6845]
[1736842987666,10.63809886,186.37,186.33,2.6845]
[1736842988473,2.6842,186.36,186.33,2.6845]
[1736842988873,7.95399886,186.35,186.32,2.6847]
[1736842989173,2.6844,186.34,186.29,7.95399886]
[1736842989471,7.95399886,186.33,186.31,2.6848]
[1736842991373,7.95399886,186.33,186.28,1.622]
[1736842991572,10.63869886,186.33,186.3,2.6849]
[1736842991769,7.95399886,186.33,186.28,1.622]
[1736842992169,7.95399886,186.31,186.29,2.6851]
[1736842992773,10.63869886,186.33,186.3,2.685]
[1736842993072,10.63869886,186.33,186.28,1.622]
[1736842993269,10.63869886,186.33,186.29,2.6851]
[1736842993471,10.63869886,186.33,186.28,1.622]
[1736842993871,10.63869886,186.33,186.3,2.6849]
[1736842994471,7.95399886,186.33,186.31,2.6848]
[1736842994673,2.6844,186.34,186.31,2.6848]
[1736842995672,7.95399886,186.35,186.29,7.95399886]
[1736842995871,10.63829886,186.35,186.32,2.6846]
[1736842996072,10.63829886,186.35,186.31,7.95399886]
[1736842996273,10.63799886,186.37,186.34,2.6843]
[1736842996671,7.95399886,186.37,186.34,2.6843]
[1736842997070,7.95399886,186.35,186.31,7.95399886]
[1736842997374,10.63839886,186.35,186.32,2.6847]
[1736842997970,2.6848,186.32,186.29,2.6851]
[1736842998281,5.52,186.4,186.28,7.95399886]
[1736842998473,2.6844,186.34,186.28,7.95399886]
[1736842999075,10.63839886,186.35,186.28,7.95399886]
[1736843000179,2.6844,186.34,186.31,2.6847]
[1736843000381,7.95399886,186.33,186.31,2.6847]
[1736843002474,2.6844,186.34,186.31,2.6847]
[1736843003078,7.95399886,186.33,186.31,2.6847]
[1736843004680,2.6849,186.31,186.28,2.6852]
[1736843004876,2.6849,186.31,186.27,1.6189]
[1736843004877,5.52,186.4,186.29,7.95399886]
[1736843005077,2.6843,186.35,186.32,2.6847]
[1736843005384,7.95399886,186.36,186.32,2.6847]
[1736843006181,7.95399886,186.37,186.31,7.95399886]
[1736843007580,0.95399886,186.37,186.31,7.95399886]
[1736843008775,0.95399886,186.37,186.35,2.6843]
[1736843010177,2.6837,186.39,186.36,2.6841]
[1736843010381,10.63769886,186.39,186.36,2.6841]
[1736843011883,0.63769886,186.39,186.36,2.6841]
[1736843012883,5.00388248,186.47,186.35,7.95399886]
[1736843013087,5.52,186.46,186.37,7.95399886]
[1736843013386,7.95399886,186.43,186.37,7.95399886]
[1736843013587,10.63719886,186.43,186.39,2.6836]
[1736843013982,10.63719886,186.43,186.37,7.95399886]
[1736843014289,10.63719886,186.43,186.4,2.6835]
[1736843014682,7.95399886,186.45,186.4,2.6834]
[1736843014881,7.95399886,186.45,186.39,7.95399886]
[1736843015785,10.63689886,186.45,186.42,2.6832]
[1736843015978,2.6829,186.45,186.42,2.6832]
[1736843017485,7.95399886,186.46,186.42,2.6832]
[1736843019084,2.6829,186.45,186.42,2.6832]
[1736843019489,7.95399886,186.44,186.4,1.6039]
[1736843019685,10.63739886,186.42,186.39,2.6836]
[1736843020490,5.52,186.5,186.37,2.684]
[1736843020491,7.95399886,186.4,186.37,2.684]
[1736843020690,7.95399886,186.4,186.35,4.8163]
[1736843020889,7.95399886,186.4,186.35,12.77029886]
[1736843022086,10.63769886,186.4,186.37,2.6839]
[1736843022493,5.52,186.5,186.37,7.95399886]
[1736843022689,10.63719886,186.43,186.39,2.6836]
[1736843022888,10.63719886,186.43,186.37,7.95399886]
[1736843023089,10.63719886,186.43,186.35,4.8163]
[1736843023090,2.6832,186.43,186.39,7.95399886]
[1736843023389,2.6833,186.42,186.4,2.6835]
[1736843023890,5.3636,186.53,186.39,7.95399886]
[1736843024091,10.63689886,186.45,186.42,2.6833]
[1736843030587,2.6829,186.45,186.42,2.6833]
[1736843030891,7.95399886,186.43,186.35,4.8163]
[1736843031198,7.95399886,186.41,186.35,4.8163]
[1736843031692,7.95399886,186.39,186.35,4.8163]
[1736843031892,7.95399886,186.37,186.35,3.2108]
[1736843032285,10.63809886,186.37,186.35,3.2108]
[1736843032488,2.6841,186.37,186.35,3.2108]
[1736843033102,2.6842,186.36,186.33,5.49069245]
[1736843034694,2.6842,186.36,186.33,8.17519245]
[1736843036998,2.684,186.37,186.34,2.6844]
[1736843038799,2.6838,186.39,186.36,2.6841]
[1736843039000,7.95399886,186.42,186.36,7.95399886]
[1736843039797,7.95399886,186.42,186.38,7.95399886]
[1736843040098,7.95399886,186.44,186.4,7.95399886]
[1736843040394,2.6831,186.43,186.4,10.63749886]
[1736843040601,7.95399886,186.44,186.33,5.49069245]
[1736843040896,7.95399886,186.44,186.38,7.95399886]
[1736843041097,2.6832,186.43,186.4,2.6835]
[1736843043598,7.95399886,186.44,186.38,7.95399886]
[1736843043799,10.63699886,186.44,186.41,2.6834]
[1736843044796,2.6828,186.45,186.42,2.6832]
[1736843045297,2.6824,186.49,186.45,2.6827]
[1736843046705,2.6824,186.49,186.44,7.95399886]
[1736843046897,2.6824,186.49,186.46,2.6827]
[1736843048504,7.95399886,186.5,186.44,7.95399886]
[1736843048705,2.6824,186.48,186.45,2.6828]
[1736843049106,10.63639886,186.48,186.42,7.95399886]
[1736843049406,5.54,186.53,186.44,7.95399886]
[1736843049606,7.95399886,186.5,186.44,7.95399886]
[1736843051110,2.6824,186.48,186.45,2.6828]
[1736843052305,7.95399886,186.48,186.36,4.9825]
[1736843052510,7.95399886,186.48,186.42,7.95399886]
[1736843053517,2.6828,186.45,186.36,4.9825]
[1736843053710,7.95399886,186.44,186.38,7.95399886]
[1736843054708,2.6832,186.43,186.4,2.6835]
[1736843056415,2.6832,186.43,186.4,10.63749886]
[1736843057811,5.54,186.53,186.4,7.95399886]
[1736843058010,182.873,186.55,186.42,7.95399886]
[1736843058210,7.95399886,186.48,186.42,7.95399886]
[1736843058513,2.6826,186.47,186.45,2.6828]
[1736843058911,7.95399886,186.5,186.45,2.6828]
[1736843059411,2.6825,186.48,186.45,2.6828]
[1736843061609,2.6825,186.48,186.44,2.6829]
[1736843061610,2.6826,186.47,186.44,2.6829]
[1736843062612,7.95399886,186.48,186.42,7.95399886]
[1736843062912,2.6829,186.45,186.42,2.6832]
[1736843063113,7.95399886,186.46,186.4,7.95399886]
[1736843063313,2.683,186.44,186.41,2.6834]
[1736843068213,2.683,186.44,186.4,7.95399886]
[1736843068514,2.683,186.44,186.42,2.6833]
[1736843072216,2.6829,186.45,186.42,2.6833]
[1736843078415,7.95399886,186.44,186.36,4.9825]
[1736843078617,7.95399886,186.4,186.36,3.3098]
[1736843078817,7.95399886,186.4,186.34,36.82641134]
[1736843079511,10.63769886,186.4,186.37,2.684]
[1736843079818,7.95399886,186.4,186.34,7.95399886]
[1736843080414,2.6838,186.39,186.36,2.6841]
[1736843081019,2.6836,186.4,186.37,2.684]
[1736843081217,7.95399886,186.4,186.33,5.49069245]
[1736843081419,7.95399886,186.4,186.33,13.44469131]
[1736843081722,5.5,186.47,186.33,13.44469131]
[1736843081723,7.95399886,186.38,186.33,5.49069245]
[1736843081923,7.95399886,186.36,186.33,5.49069245]
[1736843082922,2.6843,186.35,186.33,5.49069245]
[1736843083623,7.95399886,186.38,186.33,5.49069245]
[1736843083820,2.6838,186.39,186.35,2.6842]
[1736843084724,7.95399886,186.4,186.35,2.6842]
[1736843084923,2.6839,186.38,186.35,2.6842]
[1736843085325,2.6839,186.38,186.34,10.63839886]
[1736843085525,2.6841,186.37,186.34,7.95399886]
[1736843086326,7.95399886,186.38,186.34,7.95399886]
[1736843087029,2.684,186.37,186.34,7.95399886]
[1736843087243,7.95399886,186.38,186.33,5.49069245]
[1736843087639,2.6841,186.37,186.33,5.49069245]
[1736843087840,7.95399886,186.38,186.33,5.49069245]
[1736843088639,2.6842,186.36,186.33,5.49069245]
[1736843089236,7.95399886,186.38,186.33,5.49069245]
[1736843089436,2.6844,186.35,186.33,5.49069245]
[1736843089942,2.6842,186.36,186.33,8.17519245]
[1736843096244,7.95399886,186.38,186.33,5.49069245]
[1736843096442,7.95399886,186.36,186.3,7.95399886]
[1736843098044,2.6845,186.34,186.3,10.63889886]
[1736843098247,7.95399886,186.36,186.3,10.63889886]
[1736843098435,2.6845,186.34,186.3,10.63889886]
[1736843099839,2.6846,186.33,186.3,10.63889886]
[1736843102049,5.48,186.4,186.3,7.95399886]
[1736843102243,2.6843,186.36,186.33,2.6845]
[1736843102444,7.95399886,186.37,186.33,2.6845]
[1736843103547,2.6842,186.36,186.33,2.6845]
[1736843104348,7.95399886,186.37,186.26,3.1961]
[1736843104548,2.6844,186.34,186.31,2.6848]
[1736843105052,2.6843,186.35,186.32,2.6846]
[1736843105952,2.6843,186.35,186.32,7.95399886]
[1736843106149,5.48,186.4,186.32,7.95399886]
[1736843106455,7.95399886,186.41,186.34,7.95399886]
[1736843107056,182.873,186.47,186.36,7.95399886]
[1736843107263,7.95399886,186.42,186.36,7.95399886]
[1736843107656,2.6836,186.4,186.36,7.95399886]
[1736843107956,7.95399886,186.4,186.34,7.95399886]
[1736843108253,7.95399886,186.4,186.34,10.63829886]
[1736843108955,7.95399886,186.4,186.34,7.95399886]
[1736843109254,7.95399886,186.38,186.34,7.95399886]
[1736843109455,7.95399886,186.36,186.33,2.6845]
[1736843109755,7.95399886,186.36,186.31,2.6848]
[1736843109957,2.6845,186.34,186.31,2.6848]
[1736843110259,7.95399886,186.34,186.3,7.95399886]
[1736843110756,2.6846,186.33,186.3,7.95399886]
[1736843111754,2.6846,186.33,186.3,2.685]
[1736843112255,7.95399886,186.34,186.28,61.07905005]
[1736843112256,2.6848,186.32,186.28,61.07905005]
[1736843112457,2.6848,186.32,186.29,2.6851]
[1736843112652,7.95399886,186.34,186.28,61.07905005]
[1736843112852,2.6849,186.31,186.28,61.07905005]
[1736843114258,2.6849,186.31,186.28,63.76425005]
[1736843115160,10.63849886,186.34,186.31,2.6848]
[1736843115553,2.6846,186.33,186.3,2.685]
[1736843120762,2.6844,186.35,186.32,7.95399886]
[1736843120962,7.95399886,186.38,186.32,7.95399886]
[1736843121360,2.684,186.37,186.34,2.6843]
[1736843122263,155.1107049,186.48,186.32,7.95399886]
[1736843122564,2.6839,186.38,186.32,7.95399886]
[1736843122967,2.6839,186.38,186.34,2.6843]
[1736843123867,2.684,186.37,186.34,2.6843]
[1736843124870,7.95399886,186.37,186.32,7.95399886]
[1736843125060,7.95399886,186.35,186.32,2.6847]
[1736843126167,7.95399886,186.35,186.3,2.685]
[1736843127472,2.6844,186.34,186.31,2.6848]
[1736843129070,2.6846,186.33,186.3,2.685]
[1736843130070,7.95399886,186.36,186.33,2.6845]
[1736843130374,7.95399886,186.36,186.29,7.95399886]
[1736843130968,2.6843,186.35,186.31,2.6848]
[1736843131164,2.6843,186.35,186.29,7.95399886]
[1736843132069,2.6843,186.35,186.32,2.6847]
[1736843137376,2.6843,186.35,186.33,2.6846]
[1736843137677,2.6842,186.36,186.31,7.95399886]
[1736843139176,2.6842,186.36,186.33,2.6845]
[1736843140083,7.95399886,186.38,186.31,7.95399886]
[1736843140774,2.6845,186.34,186.31,10.63879886]
[1736843141678,2.6845,186.34,186.31,2.6848]
[1736843143978,2.6846,186.33,186.31,2.6848]
[1736843145276,2.6846,186.33,186.3,7.95399886]
[1736843145277,7.95399886,186.36,186.3,7.95399886]
[1736843145473,7.95399886,186.32,186.26,3.1961]
[1736843145778,7.95399886,186.3,186.26,3.1961]
[1736843146180,2.6851,186.29,186.27,2.6854]
[1736843147574,2.6851,186.29,186.26,11.15009886]
[1736843147575,2.6854,186.28,186.26,3.1961]
[1736843148276,2.6854,186.27,186.26,3.1961]
[1736843148475,7.95399886,186.28,186.23,7.95399886]
[1736843149077,7.95399886,186.28,186.21,16.74793597]
[1736843149875,2.6858,186.25,186.21,19.43413597]
[1736843150776,2.6858,186.25,186.22,2.6861]
[1736843151881,7.95399886,186.26,186.22,2.6861]
[1736843152183,2.686,186.24,186.21,5.987]
[1736843152480,10.63999886,186.24,186.21,5.987]
[1736843152877,2.686,186.24,186.21,5.987]
[1736843160289,7.95399886,186.26,186.21,3.3007]
[1736843160491,2.6861,186.23,186.21,3.3007]
[1736843161290,7.95399886,186.24,186.21,3.3007]
[1736843161493,2.6863,186.22,186.19,4.3576]
[1736843161880,7.95399886,186.24,186.2,2.6864]
[1736843162088,2.6861,186.23,186.2,10.64039886]
[1736843162581,7.95399886,186.26,186.2,10.64039886]
[1736843162791,2.6862,186.22,186.2,10.64039886]
[1736843162987,7.95399886,186.24,186.18,10.64069886]
[1736843163490,2.6862,186.22,186.19,2.6866]
[1736843165891,2.6858,186.25,186.2,7.95399886]
[1736843166090,2.6858,186.25,186.22,7.95399886]
[1736843166284,7.95399886,186.29,186.24,7.95399886]
[1736843166492,2.6856,186.27,186.24,7.95399886]
[1736843166794,7.95399886,186.25,186.15,3.2841]
[1736843167095,7.95399886,186.25,186.2,7.95399886]
[1736843167296,7.95399886,186.27,186.2,7.95399886]
[1736843167591,2.6858,186.25,186.22,2.6861]
[1736843167787,2.6858,186.25,186.22,10.64009886]
[1736843167994,7.95399886,186.27,186.22,7.95399886]
[1736843168189,2.6854,186.27,186.22,7.95399886]
[1736843169089,2.6854,186.27,186.24,2.6858]
[1736843169294,2.6853,186.28,186.22,7.95399886]
[1736843169490,2.6853,186.28,186.23,3.2961]
[1736843169690,7.95399886,186.31,186.24,7.95399886]
[1736843170494,2.6853,186.29,186.25,2.6857]
[1736843170693,7.95399886,186.29,186.24,7.95399886]
[1736843170895,7.95399886,186.29,186.23,3.2961]
[1736843171094,2.6855,186.27,186.23,5.9821]
[1736843171388,7.95399886,186.29,186.23,5.9821]
[1736843171793,2.6855,186.27,186.23,5.9821]
[1736843172392,7.95399886,186.25,186.2,9.57369886]
[1736843172587,7.95399886,186.25,186.19,5.48]
[1736843172588,7.95399886,186.25,186.18,7.95399886]
[1736843173185,2.6862,186.22,186.18,7.95399886]
[1736843173386,7.95399886,186.23,186.16,3.131]
[1736843173692,7.95399886,186.23,186.17,7.95399886]
[1736843173890,7.95399886,186.23,186.17,10.64079886]
[1736843174295,2.6864,186.21,186.17,10.64079886]
[1736843174491,7.95399886,186.23,186.17,10.64079886]
[1736843174897,2.6863,186.22,186.17,10.64079886]
[1736843175098,7.95399886,186.23,186.17,10.64079886]
[1736843175600,2.6864,186.21,186.17,10.64079886]
[1736843176301,2.6865,186.2,186.17,10.64079886]
[1736843176702,7.95399886,186.21,186.16,5.8179]
[1736843177505,2.6866,186.19,186.16,5.8179]
[1736843178809,2.687,186.17,186.15,5.49601339]
[1736843180310,7.95399886,186.21,186.15,16.13701225]
[1736843181210,2.6866,186.19,186.16,2.687]
[1736843182011,2.6865,186.2,186.16,2.687]
[1736843182409,2.6865,186.2,186.15,13.45001225]
[1736843182611,2.6865,186.2,186.17,2.6869]
[1736843182906,2.6864,186.21,186.17,10.64089886]
[1736843183302,7.95399886,186.23,186.17,7.95399886]
[1736843183507,2.6864,186.2,186.17,7.95399886]
[1736843183709,2.6864,186.2,186.17,10.64079886]
[1736843183909,10.64009886,186.23,186.17,7.95399886]
[1736843184509,7.95399886,186.23,186.19,2.6864]
[1736843184710,7.95399886,186.23,186.17,7.95399886]
[1736843184711,2.6863,186.21,186.17,7.95399886]
[1736843184912,7.95399886,186.23,186.17,7.95399886]
[1736843185114,7.95399886,186.25,186.19,10.64049886]
[1736843185312,2.6862,186.22,186.19,10.64049886]
[1736843186615,2.686,186.24,186.21,7.95399886]
[1736843186813,13.43399886,186.27,186.21,7.95399886]
[1736843187012,7.95399886,186.27,186.21,7.95399886]
[1736843188014,7.95399886,186.27,186.21,10.64019886]
[1736843188015,2.6858,186.25,186.21,10.64019886]
[1736843189111,7.95399886,186.25,186.19,2.6865]
[1736843189310,7.95399886,186.25,186.18,7.95399886]
[1736843189812,2.6863,186.22,186.18,10.64059886]
[1736843190013,2.6863,186.22,186.18,7.95399886]
[1736843190515,2.6863,186.22,186.17,3.2805]
[1736843190719,2.6864,186.21,186.17,3.2805]
[1736843191107,7.95399886,186.23,186.17,5.9673]
[1736843191312,2.6865,186.2,186.17,5.9673]
[1736843191720,44.67208041,186.28,186.18,2.6866]
[1736843191915,2.6863,186.22,186.18,2.6866]
[1736843192113,7.95399886,186.23,186.18,2.6866]
[1736843193120,2.6863,186.21,186.18,2.6866]
[1736843195316,7.95399886,186.23,186.17,3.2805]
[1736843195620,2.6865,186.2,186.17,5.9674]
[1736843199019,44.67208041,186.28,186.18,2.6867]
[1736843199020,2.6863,186.21,186.18,2.6867]
[1736843199222,7.95399886,186.23,186.18,7.95399886]
[1736843199820,188.2422,186.33,186.2,7.95399886]
[1736843200019,7.95399886,186.29,186.22,7.95399886]
[1736843200220,182.873,186.33,186.24,7.95399886]
[1736843200416,7.95399886,186.33,186.26,7.95399886]
[1736843200620,7.95399886,186.31,186.26,7.95399886]
[1736843200817,2.6852,186.29,186.26,7.95399886]
[1736843201218,7.95399886,186.29,186.24,7.95399886]
[1736843201420,2.6855,186.27,186.24,7.95399886]
[1736843201619,7.95399886,186.29,186.24,7.95399886]
[1736843202515,7.95399886,186.27,186.17,8.7605]
[1736843202716,7.95399886,186.27,186.2,7.95399886]
[1736843203620,2.6857,186.25,186.2,7.95399886]
[1736843203818,7.95399886,186.25,186.2,7.95399886]
[1736843204016,7.95399886,186.25,186.18,10.64069886]
[1736843204218,2.6864,186.21,186.18,7.95399886]
[1736843206624,7.95399886,186.23,186.18,7.95399886]
[1736843206829,2.6864,186.2,186.18,7.95399886]
[1736843209126,2.6864,186.2,186.17,5.9673]
[1736843209329,7.95399886,186.21,186.17,3.2805]
[1736843210034,2.6867,186.19,186.17,3.2805]
[1736843210628,2.6865,186.2,186.17,5.9673]
[1736843210829,2.6865,186.2,186.17,3.2805]
[1736843211024,2.6865,186.2,186.17,11.23449886]
[1736843211524,2.6863,186.22,186.19,2.6865]
[1736843212026,2.6863,186.21,186.19,2.6865]
[1736843212627,7.95399886,186.23,186.19,2.6865]
[1736843212928,2.6862,186.22,186.19,2.6865]
[1736843213230,227.54042433,186.31,186.21,2.6862]
[1736843213532,2.6858,186.25,186.21,10.64019886]
[1736843213720,7.95399886,186.26,186.21,10.64019886]
[1736843214129,7.95399886,186.26,186.21,2.6862]
[1736843214330,7.95399886,186.24,186.2,2.6864]
[1736843214725,7.95399886,186.24,186.17,11.23449886]
[1736843214928,7.95399886,186.22,186.17,11.23449886]
[1736843215425,2.6863,186.21,186.18,2.6866]
[1736843215826,7.95399886,186.24,186.17,11.23449886]
[1736843216528,5.48,186.3,186.19,7.95399886]
[1736843216731,7.95399886,186.25,186.19,7.95399886]
[1736843216922,2.6859,186.24,186.21,2.6862]
[1736843220529,2.686,186.23,186.2,2.6864]
[1736843220927,7.95399886,186.26,186.19,7.95399886]
[1736843221129,2.686,186.24,186.21,2.6863]
[1736843221533,2.6855,186.27,186.23,10.63989886]
[1736843221729,7.95399886,186.3,186.23,10.63989886]
[1736843222026,7.95399886,186.3,186.25,7.95399886]
[1736843222232,2.6856,186.27,186.25,7.95399886]
[1736843222625,7.95399886,186.3,186.25,7.95399886]
[1736843222824,2.6853,186.28,186.25,10.63969886]
[1736843224034,2.685,186.31,186.27,10.63939886]
[1736843224727,2.685,186.31,186.27,7.95399886]
[1736843224927,5.48,186.37,186.29,7.95399886]
[1736843225127,7.95399886,186.35,186.29,7.95399886]
[1736843225323,5.00211304,186.41,186.19,53.14889455]
[1736843225324,5.00211304,186.41,186.31,7.95399886]
[1736843225537,7.95399886,186.4,186.33,7.95399886]
[1736843225828,7.95399886,186.4,186.29,1.6841]
[1736843225829,7.95399886,186.4,186.35,7.95399886]
[1736843227135,2.684,186.38,186.35,7.95399886]
[1736843227924,5.48,186.44,186.35,7.95399886]
[1736843227925,2.6834,186.42,186.35,10.63829886]
[1736843228135,7.95399886,186.42,186.35,10.63829886]
[1736843228736,2.6837,186.4,186.35,10.63829886]
[1736843228937,7.95399886,186.42,186.37,7.95399886]
[1736843229565,2.6835,186.41,186.37,7.95399886]
[1736843229848,7.95399886,186.42,186.35,7.95399886]
[1736843230047,5.48,186.44,186.35,10.63819886]
[1736843230048,10.63759886,186.4,186.35,10.63819886]
[1736843231261,10.63759886,186.4,186.35,7.95399886]
[1736843231845,10.63759886,186.4,186.36,2.6841]
[1736843232056,2.6836,186.4,186.36,2.6841]
[1736843232352,10.63739886,186.42,186.37,7.95399886]
[1736843232646,7.95399886,186.42,186.37,10.63799886]
[1736843234040,44.63310486,186.46,186.39,10.63759886]
[1736843234236,7.95399886,186.45,186.39,7.95399886]
[1736843234433,7.95399886,186.47,186.41,7.95399886]
[1736843234635,2.6828,186.46,186.41,10.63729886]
[1736843234945,2.6828,186.46,186.41,7.95399886]
[1736843235337,2.6828,186.46,186.43,7.95399886]
[1736843236541,2.6828,186.46,186.42,2.6833]
[1736843237841,5.46,186.53,186.34,5.48]
[1736843237842,2.6825,186.48,186.44,2.683]
[1736843238341,7.95399886,186.49,186.43,7.95399886]
[1736843238545,2.6826,186.47,186.43,10.63699886]
[1736843239743,7.95399886,186.49,186.43,7.95399886]
[1736843239945,2.6824,186.48,186.43,7.95399886]
[1736843240149,7.95399886,186.49,186.43,7.95399886]
[1736843240344,10.63639886,186.49,186.45,2.6828]
[1736843246448,2.6822,186.5,186.46,2.6826]
[1736843246645,44.61484892,186.54,186.49,7.95399886]
[1736843246854,7.95399886,186.56,186.51,7.95399886]
[1736843247749,2.6816,186.54,186.51,7.95399886]
[1736843248448,2.6816,186.54,186.5,2.6821]
[1736843248653,7.95399886,186.52,186.43,3.3057]
[1736843248845,7.95399886,186.5,186.45,7.95399886]
[1736843249350,7.95399886,186.48,186.43,11.25969886]
[1736843249750,10.63649886,186.48,186.44,2.6829]
[1736843250253,7.95399886,186.48,186.44,2.6829]
[1736843250444,2.6827,186.46,186.43,13.94279886]
[1736843250844,7.95399886,186.48,186.43,11.25969886]
[1736843251251,5.48,186.53,186.44,2.6829]
[1736843251451,12.43349935,186.51,186.44,2.6829]
[1736843251952,2.6825,186.48,186.44,2.6829]
[1736843252555,2.6825,186.48,186.43,3.3057]
[1736843252854,12.43349935,186.51,186.45,2.6828]
[1736843253154,2.6826,186.47,186.45,2.6828]
[1736843254148,2.6824,186.48,186.45,2.6828]
[1736843256256,2.6824,186.48,186.46,2.6827]
[1736843257552,12.43349935,186.51,186.46,2.6827]
[1736843257752,2.6823,186.49,186.46,2.6827]
[1736843258560,2.6823,186.49,186.43,3.3057]
[1736843258561,2.6822,186.5,186.47,2.6824]
[1736843259762,2.6818,186.53,186.46,12.43349935]
[1736843259956,12.43349935,186.57,186.46,12.43349935]
[1736843260156,5.48,186.59,186.49,12.43349935]
[1736843260357,2.6815,186.54,186.51,2.682]
[1736843260562,12.43349935,186.57,186.46,12.43349935]
[1736843261162,2.6818,186.53,186.49,2.6822]
[1736843266559,2.6821,186.51,186.47,2.6824]
[1736843266753,12.43349935,186.54,186.47,2.6824]
[1736843266958,12.43349935,186.54,186.43,15.73919935]
[1736843267358,2.6823,186.49,186.46,2.6827]
[1736843267563,2.6823,186.49,186.43,15.73919935]
[1736843267760,12.43349935,186.54,186.43,3.3057]
[1736843268363,12.43349935,186.54,186.45,2.6827]
[1736843269097,12.43349935,186.54,186.43,3.3057]
[1736843270484,12.43349935,186.54,186.46,2.6827]
[1736843270485,2.682,186.51,186.46,2.6827]
[1736843270684,12.43349935,186.54,186.46,2.6827]
[1736843270878,12.43349935,186.54,186.43,15.73919935]
[1736843271089,12.43349935,186.54,186.46,2.6826]
[1736843271492,7.9554957,186.51,186.46,2.6826]
[1736843271792,7.9554957,186.52,186.47,2.6825]
[1736843273073,2.6822,186.5,186.47,2.6825]
[1736843273667,2.6818,186.52,186.49,2.6823]
[1736843275463,2.6815,186.55,186.51,2.682]
[1736843275664,7.9554957,186.55,186.51,2.682]
[1736843276356,7.9554957,186.55,186.39,39.69981248]
[1736843276357,182.873,186.53,186.39,28.87241248]
[1736843276663,1.8466057,186.41,186.4,7.21810312]
[1736843277068,2.6836,186.4,186.39,19.01041248]
[1736843277664,10.6388957,186.41,186.39,19.01041248]
[1736843277866,7.9554957,186.41,186.35,2.6843]
[1736843278066,7.9554957,186.39,186.34,7.9554957]
[1736843278462,7.9554957,186.39,186.32,9.5070957]
[1736843279378,12.44866233,186.4,186.33,2.6845]
[1736843279980,2.6838,186.39,186.33,2.6845]
[1736843281072,2.6839,186.38,186.33,2.6845]
[1736843282981,12.44866233,186.4,186.32,1.5516]
[1736843283186,17.98866233,186.43,186.32,14.00026233]
[1736843283382,17.98866233,186.43,186.32,12.44866233]
[1736843283676,17.98866233,186.43,186.33,1.5949]
[1736843283882,2.6836,186.4,186.33,1.5949]
[1736843284181,17.98866233,186.43,186.33,1.5949]
[1736843284381,17.98866233,186.43,186.34,2.6844]
[1736843285382,2.6838,186.39,186.34,2.6844]
[1736843285983,2.6839,186.38,186.33,1.5949]
[1736843286882,2.6839,186.38,186.33,4.2794]
[1736843287783,149.7456049,186.53,186.33,1.5949]
[1736843288082,12.44866233,186.45,186.33,1.5949]
[1736843288279,2.6832,186.43,186.38,2.6837]
[1736843289877,2.6831,186.44,186.39,2.6836]
[1736843290081,2.6831,186.44,186.35,12.44866233]
[1736843290385,2.6831,186.44,186.36,1.6933]
[1736843290783,2.6831,186.44,186.39,2.6836]
[1736843290976,2.6829,186.45,186.36,1.6933]
[1736843291177,12.44866233,186.48,186.36,1.6933]
[1736843291384,12.44866233,186.48,186.38,12.44866233]
[1736843291580,2.6827,186.47,186.39,1.5491]
[1736843291785,12.44866233,186.48,186.39,1.5491]
[1736843292385,2.683,186.44,186.4,2.6834]
[1736843294490,2.6828,186.46,186.42,2.6832]
[1736843294792,12.44866233,186.48,186.39,1.5491]
[1736843295287,2.683,186.45,186.41,2.6834]
[1736843297791,12.44866233,186.48,186.39,1.5491]
[1736843298094,2.6826,186.47,186.43,2.683]
[1736843299388,7.95899847,186.46,186.43,2.683]
[1736843300591,10.64169847,186.46,186.42,2.6832]
[1736843301891,7.95899847,186.46,186.41,1.6198]
[1736843302092,2.6829,186.45,186.41,4.3032]
[1736843303086,2.6829,186.45,186.41,1.6198]
[1736843303291,2.6829,186.45,186.42,2.6832]
[1736843304282,5.52,186.52,186.41,1.6198]
[1736843304495,10.64149847,186.48,186.44,2.683]